fUST/lending_fUST_20250723
["ID","MTS","AMOUNT","RATE_DAILY","PERIOD"]
[374318062,1753273845800,-460.0,0.00019726,2]
[374318064,1753273845810,-500.0,0.00019726,2]
[374318066,1753273845819,-500.0,0.00019774,2]
[374318068,1753273845829,-500.0,0.00019775,2]
[374318070,1753273845839,-500.0,0.00019775,2]
[374318072,1753273845848,-500.0,0.00019795,2]
[374318074,1753273845858,-220.3535925,0.00019795,2]
[374318076,1753273845869,-151.0,0.000198,2]
[374318078,1753273845879,-151.0,0.000198,2]
[374318080,1753273845889,-2917.49321932,0.00019831,2]
[374318082,1753273845898,-3435.77922592,0.00019869,2]
[374318084,1753273845910,-500.0,0.00019953,2]
[374318085,1753273845919,-500.0,0.00019972,2]
[374318087,1753273845930,-500.0,0.00019972,2]
[374318089,1753273845939,-1260.0,0.0002,2]
[374318091,1753273845949,-151.0,0.0002,2]
[374318093,1753273845959,-250.59033289,0.0002,2]
[374318095,1753273845969,-198.0,0.0002,2]
[374318097,1753273845978,-151.0,0.0002,2]
[374318099,1753273845988,-227.0,0.0002,2]
[374318101,1753273845997,-500.0,0.0002,2]
[374318103,1753273846006,-151.0,0.0002,2]
[374318105,1753273846016,-802.0,0.0002,2]
[374318107,1753273846026,-198.48400764,0.0002,2]
[374318109,1753273846036,-168.39890312,0.0002,2]
[374318111,1753273846046,-460.0,0.0002,2]
[374318113,1753273846054,-9850.76,0.0002,2]
[374318116,1753273846064,-1357.95,0.0002,2]
[374318118,1753273846075,-460.0,0.0002,2]
[374318120,1753273846084,-4334.0,0.0002,2]
[374318122,1753273846093,-3683.06,0.0002,2]
[374318124,1753273846103,-460.0,0.0002,2]
[374318126,1753273846113,-460.0,0.0002,2]
[374318131,1753273846154,-460.0,0.0002,2]
[374318133,1753273846164,-460.0,0.0002,2]
[374318135,1753273846174,-2078.02,0.0002,2]
[374318137,1753273846183,-460.0,0.0002,2]
[374318139,1753273846192,-460.0,0.0002,2]
[374318141,1753273846201,-2180.38,0.0002,2]
[374318143,1753273846211,-460.0,0.0002,2]
[374318145,1753273846220,-2198.41,0.0002,2]
[374318147,1753273846230,-460.0,0.0002,2]
[374318149,1753273846239,-460.0,0.0002,2]
[374318151,1753273846248,-151.0,0.0002,2]
[374318153,1753273846258,-331.57972127,0.0002,2]
[374318155,1753273846267,-460.0,0.0002,2]
[374318157,1753273846276,-460.0,0.0002,2]
[374318159,1753273846285,-460.0,0.0002,2]
[374318161,1753273846294,-7332.29,0.0002,2]
[374318163,1753273846304,-539.79223249,0.0002,2]
[374318165,1753273846314,-460.0,0.0002,2]
[374318167,1753273846323,-460.0,0.0002,2]
[374318169,1753273846333,-3028.4,0.0002,2]
[374318171,1753273846343,-460.0,0.0002,2]
[374318173,1753273846353,-182.90484529,0.0002,2]
[374318175,1753273846362,-460.0,0.0002,2]
[374318178,1753273846371,-460.0,0.0002,2]
[374318181,1753273846381,-460.0,0.0002,2]
[374318184,1753273846390,-460.0,0.0002,2]
[374318186,1753273846400,-151.0,0.0002,3]
[374318188,1753273846413,-556.24,0.0002,2]
[374318190,1753273846423,-561.73,0.0002,2]
[374318192,1753273846432,-460.0,0.0002,2]
[374318194,1753273846441,-460.0,0.0002,2]
[374318196,1753273846450,-460.0,0.0002,2]
[374318198,1753273846459,-460.0,0.0002,2]
[374318200,1753273846468,-460.0,0.0002,2]
[374318201,1753273846478,-460.0,0.0002,2]
[374318203,1753273846488,-460.0,0.0002,2]
[374318206,1753273846497,-660.92,0.0002,2]
[374318208,1753273846506,-460.0,0.0002,2]
[374318209,1753273846515,-460.0,0.0002,2]
[374318211,1753273846525,-1574.89,0.0002,2]
[374318214,1753273846536,-460.0,0.0002,2]
[374318215,1753273846546,-532.39,0.0002,2]
[374318217,1753273846555,-2605.37,0.0002,2]
[374318219,1753273846564,-657.49,0.0002,2]
[374318221,1753273846574,-460.0,0.0002,2]
[374318224,1753273846583,-460.0,0.0002,2]
[374318225,1753273846593,-460.0,0.0002,2]
[374318227,1753273846602,-460.0,0.0002,2]
[374318229,1753273846611,-460.0,0.0002,2]
[374318231,1753273846621,-4209.98,0.0002,2]
[374318233,1753273846630,-460.0,0.0002,2]
[374318235,1753273846639,-460.0,0.0002,2]
[374318237,1753273846648,-460.0,0.0002,2]
[374318239,1753273846659,-460.0,0.0002,2]
[374318241,1753273846668,-460.0,0.0002,2]
[374318243,1753273846677,-460.0,0.0002,2]
[374318245,1753273846687,-173.56660763,0.0002,2]
[374318247,1753273846696,-713.1,0.0002,2]
[374318249,1753273846706,-509.11,0.0002,2]
[374318251,1753273846715,-460.0,0.0002,2]
[374318253,1753273846724,-626.74,0.0002,2]
[374318255,1753273846734,-460.0,0.0002,2]
[374318257,1753273846743,-550.2,0.0002,2]
[374318259,1753273846753,-2493.34,0.0002,2]
[374318261,1753273846762,-460.0,0.0002,2]
[374318263,1753273846771,-460.0,0.0002,2]
[374318265,1753273846781,-686.89,0.0002,2]
[374318266,1753273846791,-588.08,0.0002,2]
[374318268,1753273846800,-576.74,0.0002,2]
[374318270,1753273846810,-519.84,0.0002,2]
[374318272,1753273846820,-460.0,0.0002,2]
[374318274,1753273846829,-460.0,0.0002,2]
[374318276,1753273846839,-460.0,0.0002,2]
[374318278,1753273846849,-3644.9,0.0002,2]
[374318279,1753273846858,-460.0,0.0002,2]
[374318281,1753273846871,-290.85998978,0.0002,2]
[374318283,1753273846882,-496.79,0.0002,2]
[374318285,1753273846891,-460.0,0.0002,2]
[374318287,1753273846901,-309.08,0.0002,2]
[374318289,1753273846912,-2154.81861453,0.0002,2]
[374318290,1753273846921,-727.6,0.0002,2]
[374318292,1753273846931,-460.0,0.0002,2]
[374318294,1753273846943,-3196.09786644,0.0002,2]
[374318296,1753273846954,-362.89968044,0.0002,2]
[374318298,1753273846964,-1055.41,0.0002,2]
[374318300,1753273846973,-460.0,0.0002,2]
[374318301,1753273846983,-37620.25626344,0.0002,2]
[374318303,1753273846992,-460.0,0.0002,2]
[374318305,1753273847002,-460.0,0.0002,2]
[374318307,1753273847012,-460.0,0.0002,2]
[374318309,1753273847022,-1183.71,0.0002,2]
[374318311,1753273847033,-460.0,0.0002,2]
[374318313,1753273847043,-460.0,0.0002,2]
[374318315,1753273847052,-460.0,0.0002,2]
[374318316,1753273847061,-534.64,0.0002,2]
[374318318,1753273847071,-460.0,0.0002,2]
[374318320,1753273847080,-3408.17,0.0002,2]
[374318322,1753273847090,-460.0,0.0002,2]
[374318324,1753273847099,-703.26,0.0002,2]
[374318325,1753273847108,-460.0,0.0002,2]
[374318327,1753273847121,-460.0,0.0002,2]
[374318329,1753273847130,-460.0,0.0002,2]
[374318331,1753273847140,-460.0,0.0002,2]
[374318333,1753273847149,-460.0,0.0002,2]
[374318334,1753273847160,-460.0,0.0002,2]
[374318336,1753273847170,-460.0,0.0002,2]
[374318338,1753273847179,-460.0,0.0002,2]
[374318340,1753273847188,-460.0,0.0002,2]
[374318342,1753273847197,-460.0,0.0002,2]
[374318343,1753273847207,-1086.09,0.0002,2]
[374318345,1753273847217,-973.04,0.0002,2]
[374318347,1753273847226,-160.0,0.00020007,2]
[374318349,1753273847237,-3435.77922592,0.00020122,2]
[374318351,1753273847248,-513.590828,0.00020187,2]
[374318353,1753273847257,-151.0,0.000202,3]
[374318354,1753273847267,-151.0,0.000202,4]
[374318356,1753273847276,-517.57490607,0.00020206,2]
[374318358,1753273847286,-1000.0,0.00020206,2]
[374318360,1753273847295,-513.2,0.00020228,3]
[374318362,1753273847304,-412.74,0.00020273,2]
[374318363,1753273847314,-9850.76,0.00020273,2]
[374318365,1753273847323,-1357.95,0.00020273,2]
[374318367,1753273847332,-460.0,0.00020273,2]
[374318369,1753273847341,-4334.0,0.00020273,2]
[374318371,1753273847351,-3683.06,0.00020273,2]
[374318372,1753273847360,-596.71647768,0.00020273,2]
[374318374,1753273847370,-460.0,0.00020273,2]
[374318376,1753273847379,-460.0,0.00020273,2]
[374318378,1753273847389,-460.0,0.00020273,2]
[374318380,1753273847399,-2078.02,0.00020273,2]
[374318382,1753273847410,-460.0,0.00020273,2]
[374318384,1753273847420,-460.0,0.00020273,2]
[374318386,1753273847429,-2180.38,0.00020273,2]
[374318388,1753273847439,-2198.41,0.00020273,2]
[374318389,1753273847448,-430.27128955,0.00020273,2]
[374318391,1753273847457,-460.0,0.00020273,2]
[374318393,1753273847466,-460.0,0.00020273,2]
[374318395,1753273847475,-460.0,0.00020273,2]
[374318397,1753273847484,-460.0,0.00020273,2]
[374318399,1753273847494,-460.0,0.00020273,2]
[374318401,1753273847503,-460.0,0.00020273,2]
[374318403,1753273847512,-3028.4,0.00020273,2]
[374318404,1753273847522,-460.0,0.00020273,2]
[374318406,1753273847531,-460.0,0.00020273,2]
[374318408,1753273847540,-460.0,0.00020273,2]
[374318410,1753273847550,-460.0,0.00020273,2]
[374318412,1753273847559,-460.0,0.00020273,2]
[374318413,1753273847568,-556.24,0.00020273,2]
[374318415,1753273847578,-561.73,0.00020273,2]
[374318417,1753273847587,-460.0,0.00020273,2]
[374318419,1753273847597,-460.0,0.00020273,2]
[374318421,1753273847606,-460.0,0.00020273,2]
[374318423,1753273847615,-460.0,0.00020273,2]
[374318425,1753273847625,-460.0,0.00020273,2]
[374318427,1753273847634,-460.0,0.00020273,2]
[374318429,1753273847644,-660.92,0.00020273,2]
[374318430,1753273847654,-460.0,0.00020273,2]
[374318432,1753273847663,-460.0,0.00020273,2]
[374318434,1753273847672,-1574.89,0.00020273,2]
[374318436,1753273847681,-460.0,0.00020273,2]
[374318438,1753273847691,-532.39,0.00020273,2]
[374318439,1753273847700,-2605.37,0.00020273,2]
[374318441,1753273847711,-657.49,0.00020273,2]
[374318443,1753273847720,-460.0,0.00020273,2]
[374318445,1753273847729,-460.0,0.00020273,2]
[374318447,1753273847738,-460.0,0.00020273,2]
[374318449,1753273847748,-460.0,0.00020273,2]
[374318451,1753273847758,-460.0,0.00020273,2]
[374318452,1753273847768,-4209.98,0.00020273,2]
[374318454,1753273847777,-460.0,0.00020273,2]
[374318456,1753273847787,-460.0,0.00020273,2]
[374318458,1753273847796,-460.0,0.00020273,2]
[374318460,1753273847806,-460.0,0.00020273,2]
[374318462,1753273847815,-460.0,0.00020273,2]
[374318463,1753273847825,-460.0,0.00020273,2]
[374318465,1753273847834,-713.1,0.00020273,2]
[374318467,1753273847843,-509.11,0.00020273,2]
[374318469,1753273847853,-460.0,0.00020273,2]
[374318471,1753273847862,-626.74,0.00020273,2]
[374318473,1753273847874,-460.0,0.00020273,2]
[374318475,1753273847884,-550.2,0.00020273,2]
[374318477,1753273847895,-2493.34,0.00020273,2]
[374318479,1753273847906,-460.0,0.00020273,2]
[374318480,1753273847916,-460.0,0.00020273,2]
[374318482,1753273847926,-686.89,0.00020273,2]
[374318484,1753273847935,-588.08,0.00020273,2]
[374318486,1753273847945,-576.74,0.00020273,2]
[374318488,1753273847957,-519.84,0.00020273,2]
[374318490,1753273847967,-460.0,0.00020273,2]
[374318492,1753273847977,-460.0,0.00020273,2]
[374318494,1753273847987,-460.0,0.00020273,2]
[374318496,1753273847997,-3644.9,0.00020273,2]
[374318498,1753273848006,-496.79,0.00020273,2]
[374318499,1753273848015,-460.0,0.00020273,2]
[374318501,1753273848025,-727.6,0.00020273,2]
[374318503,1753273848034,-460.0,0.00020273,2]
[374318505,1753273848044,-1055.41,0.00020273,2]
[374318507,1753273848053,-460.0,0.00020273,2]
[374318508,1753273848063,-197.24,0.00020273,2]
[374318510,1753273848073,-460.0,0.00020273,2]
[374318512,1753273848084,-460.0,0.00020273,2]
[374318514,1753273848094,-1183.71,0.00020273,2]
[374318516,1753273848103,-460.0,0.00020273,2]
[374318518,1753273848113,-466.24450382,0.00020273,2]
[374318520,1753273848123,-310.47202461,0.00020273,2]
[374318522,1753273848132,-460.0,0.00020273,2]
[374318524,1753273848142,-3408.17,0.00020273,2]
[374318526,1753273848151,-460.0,0.00020273,2]
[374318527,1753273848162,-703.26,0.00020273,2]
[374318529,1753273848171,-460.0,0.00020273,2]
[374318531,1753273848181,-460.0,0.00020273,2]
[374318533,1753273848191,-460.0,0.00020273,2]
[374318535,1753273848200,-460.0,0.00020273,2]
[374318537,1753273848210,-460.0,0.00020273,2]
[374318539,1753273848219,-460.0,0.00020273,2]
[374318541,1753273848229,-460.0,0.00020273,2]
[374318543,1753273848238,-460.0,0.00020273,2]
[374318544,1753273848248,-1086.09,0.00020273,2]
[374318546,1753273848258,-460.0,0.00020273,2]
[374318548,1753273848267,-973.04,0.00020273,2]
[374318550,1753273848277,-1260.0,0.00020274,2]
[374318552,1753273848287,-151.0,0.00020274,2]
[374318554,1753273848296,-151.0,0.00020274,2]
[374318556,1753273848306,-500.0,0.00020274,2]
[374318558,1753273848315,-151.0,0.00020274,2]
[374318559,1753273848325,-802.0,0.00020274,2]
[374318561,1753273848335,-3435.77922592,0.0002029,2]
[374318563,1753273848344,-500.0,0.00020322,2]
[374318565,1753273848353,-1000.0,0.00020323,2]
[374318567,1753273848363,-1000.0,0.00020323,2]
[374318569,1753273848373,-151.0,0.000204,3]
[374318571,1753273848383,-151.0,0.000204,4]
[374318573,1753273848392,-571.0935272,0.000204,2]
[374318575,1753273848402,-1000.0,0.00020501,2]
[374318576,1753273848413,-1000.0,0.0002052,2]
[374318578,1753273848423,-1000.0,0.0002052,2]
[374318580,1753273848432,-9850.76,0.00020547,2]
[374318582,1753273848442,-1357.95,0.00020547,2]
[374318584,1753273848454,-460.0,0.00020547,2]
[374318586,1753273848464,-4334.0,0.00020547,2]
[374318588,1753273848474,-3683.06,0.00020547,2]
[374318590,1753273848483,-460.0,0.00020547,2]
[374318591,1753273848492,-460.0,0.00020547,2]
[374318593,1753273848502,-460.0,0.00020547,2]
[374318595,1753273848511,-2078.02,0.00020547,2]
[374318596,1753273848521,-460.0,0.00020547,2]
[374318598,1753273848531,-460.0,0.00020547,2]
[374318600,1753273848541,-2180.38,0.00020547,2]
[374318602,1753273848551,-2198.41,0.00020547,2]
[374318604,1753273848560,-460.0,0.00020547,2]
[374318606,1753273848570,-460.0,0.00020547,2]
[374318608,1753273848580,-502.49735592,0.00020547,2]
[374318610,1753273848589,-460.0,0.00020547,2]
[374318612,1753273848599,-460.0,0.00020547,2]
[374318614,1753273848608,-460.0,0.00020547,2]
[374318616,1753273848618,-460.0,0.00020547,2]
[374318617,1753273848627,-460.0,0.00020547,2]
[374318619,1753273848637,-460.0,0.00020547,2]
[374318621,1753273848646,-556.24,0.00020547,2]
[374318623,1753273848658,-561.73,0.00020547,2]
[374318625,1753273848669,-460.0,0.00020547,2]
[374318627,1753273848678,-460.0,0.00020547,2]
[374318629,1753273848688,-460.0,0.00020547,2]
[374318631,1753273848698,-460.0,0.00020547,2]
[374318633,1753273848708,-460.0,0.00020547,2]
[374318635,1753273848719,-460.0,0.00020547,2]
[374318637,1753273848729,-660.92,0.00020547,2]
[374318639,1753273848739,-460.0,0.00020547,2]
[374318640,1753273848748,-460.0,0.00020547,2]
[374318642,1753273848758,-1574.89,0.00020547,2]
[374318644,1753273848768,-460.0,0.00020547,2]
[374318646,1753273848778,-532.39,0.00020547,2]
[374318648,1753273848788,-2605.37,0.00020547,2]
[374318650,1753273848798,-657.49,0.00020547,2]
[374318652,1753273848807,-460.0,0.00020547,2]
[374318654,1753273848819,-460.0,0.00020547,2]
[374318656,1753273848829,-460.0,0.00020547,2]
[374318658,1753273848839,-460.0,0.00020547,2]
[374318660,1753273848848,-366.07535684,0.00020547,2]
[374318662,1753273848859,-4209.98,0.00020547,2]
[374318663,1753273848871,-460.0,0.00020547,2]
[374318665,1753273848882,-460.0,0.00020547,2]
[374318667,1753273848892,-460.0,0.00020547,2]
[374318669,1753273848902,-460.0,0.00020547,2]
[374318671,1753273848912,-460.0,0.00020547,2]
[374318673,1753273848923,-460.0,0.00020547,2]
[374318675,1753273848933,-713.1,0.00020547,2]
[374318677,1753273848945,-509.11,0.00020547,2]
[374318679,1753273848955,-460.0,0.00020547,2]
[374318681,1753273848965,-626.74,0.00020547,2]
[374318683,1753273848975,-460.0,0.00020547,2]
[374318685,1753273848985,-550.2,0.00020547,2]
[374318687,1753273848996,-2493.34,0.00020547,2]
[374318699,1753273849117,-460.0,0.00020547,2]
[374318701,1753273849128,-460.0,0.00020547,2]
[374318703,1753273849138,-686.89,0.00020547,2]
[374318704,1753273849148,-588.08,0.00020547,2]
[374318706,1753273849158,-576.74,0.00020547,2]
[374318708,1753273849169,-519.84,0.00020547,2]
[374318710,1753273849178,-460.0,0.00020547,2]
[374318712,1753273849189,-460.0,0.00020547,2]
[374318714,1753273849199,-3644.9,0.00020547,2]
[374318716,1753273849209,-496.79,0.00020547,2]
[374318718,1753273849218,-460.0,0.00020547,2]
[374318720,1753273849227,-727.6,0.00020547,2]
[374318722,1753273849237,-460.0,0.00020547,2]
[374318723,1753273849246,-1055.41,0.00020547,2]
[374318725,1753273849255,-460.0,0.00020547,2]
[374318727,1753273849264,-283.1817611,0.00020547,2]
[374318729,1753273849274,-460.0,0.00020547,2]
[374318731,1753273849284,-1183.71,0.00020547,2]
[374318733,1753273849294,-460.0,0.00020547,2]
[374318735,1753273849304,-460.0,0.00020547,2]
[374318737,1753273849314,-3408.17,0.00020547,2]
[374318739,1753273849323,-460.0,0.00020547,2]
[374318740,1753273849332,-703.26,0.00020547,2]
[374318742,1753273849341,-460.0,0.00020547,2]
[374318744,1753273849350,-460.0,0.00020547,2]
[374318746,1753273849359,-460.0,0.00020547,2]
[374318748,1753273849369,-460.0,0.00020547,2]
[374318750,1753273849378,-460.0,0.00020547,2]
[374318752,1753273849388,-460.0,0.00020547,2]
[374318754,1753273849397,-460.0,0.00020547,2]
[374318755,1753273849408,-460.0,0.00020547,2]
[374318757,1753273849417,-1086.09,0.00020547,2]
[374318759,1753273849426,-973.04,0.00020547,2]
[374318761,1753273849436,-1260.0,0.00020548,2]
[374318763,1753273849445,-214.32440616,0.00020548,2]
[374318765,1753273849455,-151.0,0.00020548,2]
[374318767,1753273849464,-245.0,0.00020548,2]
[374318769,1753273849474,-802.0,0.00020548,2]
[374318771,1753273849483,-260.0,0.00020555,2]
[374318773,1753273849493,-214.67886746,0.0002057,3]
[374318774,1753273849502,-12622.36869388,0.0002057,3]
[374318776,1753273849511,-476.696448,0.0002057,3]
[374318778,1753273849520,-160.0,0.0002057,3]
[374318780,1753273849530,-160.0,0.0002057,3]
[374318782,1753273849540,-2917.49321932,0.00020585,2]
[374318784,1753273849549,-151.0,0.000206,4]
[374318786,1753273849558,-151.0,0.000206,4]
[374318788,1753273849569,-347.73201029,0.00020642,2]
[374318790,1753273849578,-3435.77922592,0.00020705,2]
[374318791,1753273849587,-160.0,0.00020714,2]
[374318793,1753273849596,-160.0,0.00020714,2]
[374318795,1753273849606,-12622.36869388,0.00020716,2]
[374318797,1753273849614,-160.0,0.00020716,2]
[374318799,1753273849624,-160.0,0.00020716,2]
[374318801,1753273849633,-160.0,0.00020716,2]
[374318803,1753273849642,-214.67886746,0.00020716,2]
[374318805,1753273849651,-231.11583447,0.00020716,2]
[374318807,1753273849661,-160.0,0.00020716,2]
[374318808,1753273849671,-160.0,0.00020716,2]
[374318810,1753273849681,-840.06856235,0.00020716,2]
[374318812,1753273849690,-215.84326551,0.00020716,2]
[374318814,1753273849700,-160.0,0.00020716,2]
[374318816,1753273849709,-526.15909479,0.00020716,2]
[374318818,1753273849719,-160.0,0.00020716,2]
[374318820,1753273849728,-476.696448,0.00020716,2]
[374318822,1753273849737,-160.0,0.00020716,2]
[374318823,1753273849747,-800.0,0.00020716,2]
[374318825,1753273849757,-170.6692493,0.00020721,2]
[374318827,1753273849766,-5329.48055953,0.00020722,2]
[374318828,1753273849776,-1500.0,0.00020754,2]
[374318829,1753273849784,-973.27,0.00020776,2]
[374318830,1753273849794,-178.723,0.00020776,2]
[374318831,1753273849804,-9850.76,0.00020821,2]
[374318832,1753273849815,-1357.95,0.00020821,2]
[374318833,1753273849824,-4334.0,0.00020821,2]
[374318834,1753273849833,-3683.06,0.00020821,2]
[374318835,1753273849842,-460.0,0.00020821,2]
[374318836,1753273849851,-460.0,0.00020821,2]
[374318837,1753273849860,-2078.02,0.00020821,2]
[374318838,1753273849871,-460.0,0.00020821,2]
[374318839,1753273849880,-460.0,0.00020821,2]
[374318840,1753273849889,-2180.38,0.00020821,2]
[374318841,1753273849899,-2198.41,0.00020821,2]
[374318842,1753273849908,-460.0,0.00020821,2]
[374318843,1753273849917,-460.0,0.00020821,2]
[374318844,1753273849927,-460.0,0.00020821,2]
[374318845,1753273849936,-460.0,0.00020821,2]
[374318846,1753273849945,-460.0,0.00020821,2]
[374318847,1753273849955,-460.0,0.00020821,2]
[374318848,1753273849964,-460.0,0.00020821,2]
[374318849,1753273849974,-460.0,0.00020821,2]
[374318850,1753273849983,-556.24,0.00020821,2]
[374318851,1753273849992,-561.73,0.00020821,2]
[374318852,1753273850002,-460.0,0.00020821,2]
[374318853,1753273850011,-460.0,0.00020821,2]
[374318854,1753273850020,-460.0,0.00020821,2]
[374318855,1753273850030,-460.0,0.00020821,2]
[374318856,1753273850039,-460.0,0.00020821,2]
[374318857,1753273850048,-460.0,0.00020821,2]
[374318858,1753273850057,-660.92,0.00020821,2]
[374318859,1753273850066,-460.0,0.00020821,2]
[374318860,1753273850075,-460.0,0.00020821,2]
[374318861,1753273850084,-1574.89,0.00020821,2]
[374318862,1753273850093,-460.0,0.00020821,2]
[374318863,1753273850102,-532.39,0.00020821,2]
[374318864,1753273850112,-2605.37,0.00020821,2]
[374318866,1753273850121,-657.49,0.00020821,2]
[374318867,1753273850130,-460.0,0.00020821,2]
[374318868,1753273850139,-460.0,0.00020821,2]
[374318870,1753273850148,-460.0,0.00020821,2]
[374318872,1753273850157,-460.0,0.00020821,2]
[374318873,1753273850167,-4209.98,0.00020821,2]
[374318875,1753273850176,-460.0,0.00020821,2]
[374318878,1753273850186,-460.0,0.00020821,2]
[374318879,1753273850196,-197.17826598,0.00020821,2]
[374318881,1753273850205,-460.0,0.00020821,2]
[374318884,1753273850214,-326.96769428,0.00020821,2]
[374318885,1753273850223,-713.1,0.00020821,2]
[374318887,1753273850233,-509.11,0.00020821,2]
[374318889,1753273850242,-460.0,0.00020821,2]
[374318891,1753273850251,-460.0,0.00020821,2]
[374318893,1753273850260,-626.74,0.00020821,2]
[374318895,1753273850270,-550.2,0.00020821,2]
[374318897,1753273850279,-2493.34,0.00020821,2]
[374318899,1753273850288,-460.0,0.00020821,2]
[374318901,1753273850297,-686.89,0.00020821,2]
[374318903,1753273850306,-588.08,0.00020821,2]
[374318905,1753273850315,-576.74,0.00020821,2]
[374318907,1753273850325,-519.84,0.00020821,2]
[374318909,1753273850335,-460.0,0.00020821,2]
[374318911,1753273850344,-460.0,0.00020821,2]
[374318913,1753273850353,-3644.9,0.00020821,2]
[374318915,1753273850362,-496.79,0.00020821,2]
[374318917,1753273850371,-460.0,0.00020821,2]
[374318919,1753273850381,-727.6,0.00020821,2]
[374318921,1753273850391,-460.0,0.00020821,2]
[374318923,1753273850401,-1055.41,0.00020821,2]
[374318925,1753273850411,-460.0,0.00020821,2]
[374318927,1753273850420,-460.0,0.00020821,2]
[374318929,1753273850431,-1183.71,0.00020821,2]
[374318931,1753273850441,-460.0,0.00020821,2]
[374318933,1753273850451,-3408.17,0.00020821,2]
[374318935,1753273850460,-460.0,0.00020821,2]
[374318937,1753273850469,-703.26,0.00020821,2]
[374318939,1753273850479,-460.0,0.00020821,2]
[374318941,1753273850489,-460.0,0.00020821,2]
[374318943,1753273850498,-460.0,0.00020821,2]
[374318945,1753273850507,-460.0,0.00020821,2]
[374318947,1753273850517,-293.8,0.00020821,2]
[374318949,1753273850526,-460.0,0.00020821,2]
[374318951,1753273850536,-460.0,0.00020821,2]
[374318953,1753273850545,-460.0,0.00020821,2]
[374318956,1753273850554,-1086.09,0.00020821,2]
[374318958,1753273850564,-973.04,0.00020821,2]
[374318960,1753273850574,-1260.0,0.00020822,2]
[374318962,1753273850584,-802.0,0.00020822,2]
[374318964,1753273850593,-1500.0,0.00020871,2]
[374318965,1753273850603,-1500.0,0.00020871,2]
[374318968,1753273850612,-151.0,0.000209,4]
[374318969,1753273850622,-250.12389181,0.000209,2]
[374318972,1753273850631,-3435.77922592,0.00020951,2]
[374318973,1753273850641,-168.0,0.00020979,2]
[374318975,1753273850650,-270.26850122,0.00021,2]
[374318977,1753273850661,-679.97430302,0.00021,10]
[374318979,1753273850670,-75000.0,0.00021,2]
[374318982,1753273850680,-3959.67653516,0.00021,4]
[374318984,1753273850689,-202.17485828,0.00021,2]
[374318985,1753273850698,-1500.0,0.00021049,2]
[374318987,1753273850708,-1500.0,0.00021068,2]
[374318989,1753273850717,-1500.0,0.00021068,2]
[374318991,1753273850727,-9850.76,0.00021095,2]
[374318994,1753273850736,-1357.95,0.00021095,2]
[374318995,1753273850746,-4334.0,0.00021095,2]
[374318998,1753273850755,-3683.06,0.00021095,2]